Cogmind - Beta 13 @@@ ROGUE MODE // 2024.04.19 @ 18:26:41 Player: Mogwok Wargfriend Result: Destroyed by G-47 Trooper with Particle Gun Performance ------------- Evolutions (3) 1500 Regions Visited (4) 800 Robots Destroyed (133) 665 Value Destroyed (3438) 3438 Prototype IDs (11) 220 Alien Tech Used (0) 0 Bonus (149) 149 TOTAL SCORE: 6772 Bonus ------- High Alert Combat Kills 149 Cogmind --------- Core Integrity 0/700 Matter 275/300 Energy 286/290 System Corruption 4% Temperature Cool (39) Movement Rolling (115) Ox1 Location -7/Factory Parts ------- > --- POWER (1) -------- Improved Deuterium Engine > --- PROPULSION (3) --- Light Treads Armored Huge Wheel > --- UTILITY (7) ------ Improved Heat Sink Medium Storage Unit Improved Signal Interpreter > --- WEAPON (2) ------- Cooled Pulse Rifle Cooled Pulse Rifle > --- INVENTORY (10) --- High-capacity Battery (250) High-capacity Matter Pod (200) Cooled Pulse Rifle Heavy Assault Rifle Great Axe Peak State ------------ > --- POWER ------------ Improved Deuterium Engine > --- PROPULSION ------- Armored Wheel Armored Huge Wheel > --- UTILITY ---------- Improved Heat Sink Medium Storage Unit Improved Sensor Array Improved Signal Interpreter Target Analyzer Improved Light Armor Plating System Shield > --- WEAPON ----------- Advanced Beam Rifle Cooled Pulse Rifle > --- INVENTORY -------- Improved Deuterium Engine Improved Deuterium Engine Improved Heat Sink High-capacity Battery High-capacity Matter Pod Hacking Suite Cooled Pulse Rifle Heavy Particle Cannon Heavy Assault Rifle Great Axe [Rating: 45] Favorites ----------- Power Improved Ion Engine Engine Improved Ion Engine Power Core Light Nuclear Core Propulsion Armored Wheel Treads Light Treads Wheel Armored Wheel Utility Medium Storage Unit Device Improved Sensor Array Storage Medium Storage Unit Processor Improved Signal Interpreter Hackware Hacking Suite Protection Hardened Light Armor Plating Weapon Improved Medium Laser Energy Gun Improved Medium Laser Ballistic Gun Assault Rifle Launcher Advanced EMP Blaster Special Weapon Mining Laser Slashing Weapon Axe Build | -11 -10 -9 -8 -7 ------- Run | Yrd Mat Mat Mat Fac Slots Evolved 6 | . . 2 2 2 Power . | . . . . . Propulsion 1 | . . . 1 . Utility 5 | . . 2 1 2 Weapon . | . . . . . Parts Attached 108 | 9 3 16 19 61 Power 16 | 1 . 3 2 10 Engine 12 | 1 . 3 1 7 Core 4 | . . . 1 3 Reactor . | . . . . . Propulsion 22 | 4 2 . 3 13 Treads 3 | . . . 1 2 Leg . | . . . . . Wheel 19 | 4 2 . 2 11 Hover . | . . . . . Flight . | . . . . . Utility 45 | 2 1 8 7 27 Device 21 | 1 . 4 3 13 Storage 4 | 1 1 . 2 . Processor 4 | . . 2 . 2 Hackware 3 | . . . 1 2 Protection 13 | . . 2 1 10 Artifact . | . . . . . Weapon 25 | 2 . 5 7 11 Energy Gun 20 | 1 . 3 5 11 Energy Cannon . | . . . . . Ballistic Gun 2 | 1 . 1 . . Ballistic Cannon . | . . . . . Launcher 1 | . . . 1 . Special Weapon 1 | . . 1 . . Impact Weapon . | . . . . . Slashing Weapon 1 | . . . 1 . Piercing Weapon . | . . . . . Special Melee Weapon . | . . . . . Unidentified Prototypes 7 | . . 2 2 3 Parts Lost 39 | . . 3 4 32 Power 5 | . . 1 1 3 Propulsion 8 | . . . 1 7 Utility 21 | . . 2 1 18 Weapon 5 | . . . 1 4 Highest Loss Streak 6 | . . 1 3 6 To Critical Strikes . | . . . . . Average Slot Usage (%) 95 | . 100 96 98 91 Engine 7 | . 14 11 8 5 Wheel 21 | . 28 22 25 17 Device 15 | . 14 15 17 14 Storage 8 | . 14 11 9 7 Processor 5 | . . 6 . 10 Hackware 5 | . . . 8 6 Protection 8 | . . 7 9 9 Energy Gun 16 | . 14 16 17 14 Ballistic Gun 2 | . 14 5 . . Naked Turns . | . . . . . Heaviest Build 50 | 14 19 34 34 50 Greatest Support 44 | 32 24 24 40 44 Greatest Overweight (x) 4 | 1 4 1 1 2 Average Overweight (x) . | . . . . . Largest Inventory Capacity 10 | 8 10 10 10 10 Average Capacity 9 | 7 8 10 10 10 Most Carried 10 | 8 10 10 10 10 Average Carried 9 | 5 8 9 9 9 Final Capacity 10 | 8 10 10 10 10 Final Carried 10 | 8 10 10 10 5 Class Distribution -------------------- 52% | Mutant 44% | Scavenger-Mutant Dominant Class ---------------- Mutant | -10/Materials Mutant | -9/Materials Mutant | -8/Materials Scavenger-Mutant | -7/Factory Resources | -11 -10 -9 -8 -7 ----------- Run | Yrd Mat Mat Mat Fac Matter Collected 1682 | 296 86 531 201 568 Remotely . | . . . . . Salvage Created 5288 | 181 111 1499 1163 2334 Parts 293 | 19 10 87 70 107 Haulers Intercepted 8 | . . 5 2 1 Recyclers Shooed 14 | . . 5 4 5 Parts Field Recycled . | . . . . . Retrieved Matter . | . . . . . Parts Self-Destructed . | . . . . . Prevented . | . . . . . Kills | -11 -10 -9 -8 -7 ------- Run | Yrd Mat Mat Mat Fac Combat Hostiles Destroyed 76 | . 1 21 17 37 Guns 70 | . 1 21 16 32 Classes Destroyed 15 | 3 3 6 1 2 Worker 17 | 2 1 3 5 6 Builder 3 | . 1 1 . 1 Tunneler 4 | 4 . . . . Hauler 8 | . . 5 2 1 Recycler 11 | 1 . 4 3 3 Mechanic 1 | . . 1 . . Operator 2 | . . 2 . . Watcher 11 | . 1 3 4 3 Swarmer 17 | . . 6 7 4 Grunt 32 | . 1 10 5 16 Brawler 2 | . . 1 . 1 Duelist 3 | . . . 1 2 Sentry 14 | . . 4 4 6 Hunter 3 | . . . . 3 Programmer 5 | . . . . 5 Best Kill Streak 11 | 3 2 5 11 5 Combat Bots Only 5 | . 1 4 4 5 Max Kills in Single Turn 2 | 1 1 1 2 2 Gunslinging 1 | . . . 1 . Exploded . | . . . . . Melee . | . . . . . Uniques/NPCs Destroyed . | . . . . . Combat | -11 -10 -9 -8 -7 -------- Run | Yrd Mat Mat Mat Fac Hostile Shots Fired 705 | . 6 82 83 534 Missed 226 | . . 29 25 172 Damage Taken 6092 | . 70 675 882 4465 Core 1029 | . 23 122 173 711 Absorbed by Shields . | . . . . . Redirected to Shielding 3 | . . . . 3 Regen/Repaired (Parts) 88 | . . . . 88 Core Remaining (%) 81 | 100 90 69 68 . Volleys Fired 396 | 21 9 111 82 173 Largest 2 | 2 2 2 2 2 Hottest 131 | 60 60 112 117 131 Shots Fired 757 | 23 18 218 162 336 Gun 756 | 23 18 217 162 336 Cannon . | . . . . . Launcher . | . . . . . Special 1 | . . 1 . . Kinetic 75 | 2 9 64 . . Thermal 682 | 21 9 154 162 336 Explosive . | . . . . . Electromagnetic . | . . . . . Robot Hit Streak 26 | 4 6 11 8 26 Robot Miss Streak 4 | 2 3 4 4 3 Penetration Max . | . . . . . Secondary Targets 7 | . . 1 2 4 Max Gunslinging Chain 1 | . . 1 1 1 Shots Hit Robots 497 | 15 11 126 105 240 Core Hits 198 | 8 4 50 43 93 Critical Kills . | . . . . . Critical Parts Destroyed 1 | . . 1 . . Critical Strikes 40 | . . 10 8 22 Burn 39 | . . 9 8 22 Destroy 1 | . . 1 . . Melee Attacks 1 | . . . 1 . Impact . | . . . . . Slashing 1 | . . . 1 . Piercing . | . . . . . Sneak Attacks . | . . . . . Combat Hostiles . | . . . . . Follow-up Attacks . | . . . . . Damage Inflicted 9493 | 166 129 2198 1905 5095 Guns 9390 | 166 129 2119 1905 5071 Cannons . | . . . . . Explosions 79 | . . 79 . . Melee . | . . . . . Ramming 24 | . . . . 24 Kinetic 539 | 26 65 448 . . Thermal 8851 | 140 64 1671 1905 5071 Explosive 79 | . . 79 . . Electromagnetic . | . . . . . Impact . | . . . . . Slashing . | . . . . . Piercing . | . . . . . Highest Corruption 4 | . . 1 . 4 Average Corruption 1 | . . 1 . 1 Corruption Purged . | . . . . . Corruption Blocked . | . . . . . Effects 36 | . . 8 . 28 Message Errors 5 | . . 2 . 3 Matter Fused 8 | . . 3 . 5 Heat Flow Errors 7 | . . . . 7 Energy Discharges 8 | . . 2 . 6 Parts Rejected 2 | . . . . 2 Parts Fused 1 | . . . . 1 Data Loss (minor) 4 | . . . . 4 Data Loss (major) 1 | . . 1 . . Overload Shots . | . . . . . Overflow Damage . | . . . . . Projectiles . | . . . . . Explosions . | . . . . . Melee . | . . . . . Knockbacks . | . . . . . Impact . | . . . . . Kinetic . | . . . . . Secondary . | . . . . . Self-Inflicted Damage 11 | . . . . 11 Shots . | . . . . . Rammed 3 | . . . . 3 Targets Rammed 3 | . . . . 3 Kicked . | . . . . . Crushed . | . . . . . Highest Temperature 373 | 20 . 199 373 226 Average Temperature 63 | 20 . 50 136 49 Received Heat Transfer 1893 | . 36 249 297 1311 Effects 1 | . . . 1 . Matter Decay 1 | . . . 1 . Siege Activations . | . . . . . Robots Corrupted . | . . . . . Combat Hostiles . | . . . . . Parts Fried . | . . . . . Impact Corruptions . | . . . . . Robots Melted 6 | . . . 1 5 Combat Hostiles 6 | . . . 1 5 Parts Melted 46 | . . 3 11 32 Heat Transferred 19950 | 325 150 4231 4477 10767 Parts Sabotaged . | . . . . . Parts Stolen . | . . . . . Parts Stripped . | . . . . . Power Chain Reactions . | . . . . . Alert | -11 -10 -9 -8 -7 ------- Run | Yrd Mat Mat Mat Fac Peak Influence 615 | 35 170 506 394 615 Initial 174 | . 22 . 174 109 Average 149 | 13 64 230 142 136 Maximum Alert Level 2 | . . 2 1 2 Low Security (%) 70 | 100 100 42 69 77 Level 1 24 | . . 51 30 13 Level 2 4 | . . 6 . 8 Level 3 . | . . . . . Level 4 . | . . . . . Level 5 . | . . . . . High Security . | . . . . . Max Security . | . . . . . Squads Dispatched 22 | . 1 3 2 16 Investigation 7 | . . 1 2 4 Extermination 4 | . . . . 4 Reinforcement 6 | . 1 1 . 4 Assault 1 | . . 1 . . Garrison 4 | . . . . 4 Intercept . | . . . . . Searches Triggered . | . . . . . Construction Impeded 1 | . . . . 1 Haulers Reinforced 1 | . . . . 1 Active Scanning Responses . | . . . . . Cargo Convoy Interrupts . | . . . . . Stealth | -11 -10 -9 -8 -7 --------- Run | Yrd Mat Mat Mat Fac Distress Signals 7 | . . 1 1 5 Communications Jammed . | . . . . . Distress Signals . | . . . . . Times Spotted 129 | . 7 37 24 61 Peak Tracking Total 7 | . 4 5 5 7 Tactical Retreats 4 | . 1 . . 3 Traps | -11 -10 -9 -8 -7 ------- Run | Yrd Mat Mat Mat Fac Traps Triggered 2 | . . 1 . 1 Indirectly . | . . . . . Trap Hack Attempts . | . . . . . Triggered . | . . . . . Disarmed . | . . . . . Reprogrammed 4 | . . . 4 . Reused 1 | . . . 1 . Traps Extracted . | . . . . . Installed . | . . . . . Triggered 1 | . . . 1 . Machines | -11 -10 -9 -8 -7 ---------- Run | Yrd Mat Mat Mat Fac Machines Disabled 2 | . . 1 . 1 Max in Single Turn 1 | . . 1 . 1 Machines Repaired . | . . . . . Machines Dismantled . | . . . . . Machines Sabotaged . | . . . . . Overloaded Fab Kills . | . . . . . Hacking | -11 -10 -9 -8 -7 --------- Run | Yrd Mat Mat Mat Fac Machines Accessed 38 | . 5 6 12 15 Terminals 28 | . 5 6 9 8 Fabricators 1 | . . . . 1 Repair Stations 2 | . . . . 2 Recycling Units 3 | . . . 1 2 Scanalyzers 2 | . . . 1 1 Garrison Access 2 | . . . 1 1 Total Hacks 140 | . 22 20 51 47 Successful 76 | . 9 8 35 24 Failed 63 | . 13 12 15 23 Catastrophic 11 | . 1 2 1 7 Database Lockouts 1 | . . . 1 . Manual 87 | . 19 16 24 28 Terminals 105 | . 22 20 35 28 Fabricators 3 | . . . . 3 Repair Stations 6 | . . . . 6 Recycling Units 8 | . . . 4 4 Scanalyzers 12 | . . . 10 2 Garrison Access 6 | . . . 2 4 Terminal Hacks 30 | . 4 4 14 8 Record 1 | . . . . 1 Part Schematic 3 | . . . 3 . Robot Analysis 6 | . 2 1 1 2 Prototype ID Bank 2 | . 1 1 . . Branch Access Points 2 | . . . 2 . Terminal Index 2 | . . . . 2 Fabricator Index 1 | . . . . 1 Alert Level 2 | . . . 2 . Unreport Threat 1 | . . . 1 . Locate Traps 4 | . 1 . 2 1 Reprogram Traps 1 | . . . 1 . Dispatch Records 1 | . . 1 . . Investigation Status 1 | . . . 1 . Registered Components 2 | . . 1 1 . Zone Layout 1 | . . . . 1 Fabricator Hacks 3 | . . . . 3 Network Status 1 | . . . . 1 Load Schematic 1 | . . . . 1 Build 1 | . . . . 1 Repair Station Hacks 3 | . . . . 3 Scan Component 2 | . . . . 2 Repair 1 | . . . . 1 Recycling Unit Hacks 2 | . . . 2 . Process 1 | . . . 1 . Report Inventory 1 | . . . 1 . Scanalyzer 11 | . . . 10 1 Insert Component 6 | . . . 5 1 Analyze 5 | . . . 5 . Garrison Access Hacks . | . . . . . Unauthorized Hacks 27 | . 5 4 9 9 Terminals 23 | . 5 4 7 7 Assimilate 2 | . 1 . . 1 Botnet 18 | . 3 3 6 6 Operators 3 | . 1 1 1 . Fabricators . | . . . . . Repair Stations . | . . . . . Recycling Units 3 | . . . 2 1 Reject 2 | . . . 1 1 Mask 1 | . . . 1 . Scanalyzers . | . . . . . Garrison Access 1 | . . . . 1 Intercept 1 | . . . . 1 Data Cores Recovered 1 | . . 1 . . Used 1 | . . 1 . . Hacking Detections 36 | . 5 6 10 15 Full Trace Events 9 | . 1 2 2 4 Feedback Events 1 | . . . . 1 Corruption 1 | . . . . 1 Feedback Blocked . | . . . . . Robot Schematics Acquired . | . . . . . Robots Built . | . . . . . Authchips . | . . . . . Time . | . . . . . Total Robot Build Rating . | . . . . . Part Schematics Acquired 8 | . . . 8 . Parts Built 1 | . . . . 1 Authchips . | . . . . . Time 73 | . . . . 73 Total Part Build Rating 3 | . . . . 3 Parts Repaired 1 | . . . . 1 Time 16 | . . . . 16 Parts Recycled . | . . . . . Recycled Matter 115 | . . . 115 . Retrieved Matter . | . . . . . Retrieved Components . | . . . . . Parts Scanalyzed 6 | . . . 5 1 Part Schematics Acquired 5 | . . . 5 . Parts Damaged . | . . . . . Bothacking | -11 -10 -9 -8 -7 ------------ Run | Yrd Mat Mat Mat Fac Used RIF Installer . | . . . . . Robots Hacked . | . . . . . Non-combat . | . . . . . Combat . | . . . . . Robot Hacks Applied . | . . . . . Relay Couplers Released . | . . . . . Fabnet Peak Effective % . | . . . . . Robots Rewired . | . . . . . Allies Hacked . | . . . . . Hacks Repelled . | . . . . . Allies | -11 -10 -9 -8 -7 -------- Run | Yrd Mat Mat Mat Fac Total Allies 1 | . . . . 1 Largest Group 1 | . . . . 1 Highest-Rated Group 10 | . . . . 10 Highest-Rated Ally 10 | . . . . 10 Total Orders 3 | . . . . 3 STAY 2 | . . . . 2 FOLLOW 1 | . . . . 1 Ally Attacks . | . . . . . Total Damage . | . . . . . Kills . | . . . . . Allies Corrupted . | . . . . . Allies Melted . | . . . . . Intel | -11 -10 -9 -8 -7 ------- Run | Yrd Mat Mat Mat Fac Robot Analysis Total 6 | . 2 1 1 2 Derelict Logs Recovered . | . . . . . Drone Launches . | . . . . . Drone Recoveries . | . . . . . Exploration | -11 -10 -9 -8 -7 ------------- Run | Yrd Mat Mat Mat Fac Turns Passed 6360 | 150 418 1237 1847 2708 Spaces Moved 4116 | 89 363 845 1128 1691 Core 13 | 10 3 . . . Treads . | . . . . . Legs . | . . . . . Wheels 4103 | 79 360 845 1128 1691 Hover . | . . . . . Flight . | . . . . . Fastest Speed 50 | 50 80 90 93 83 Average Speed 95 | 87 86 99 94 97 Slowest Speed 250 | 100 250 105 105 120 Overloaded Moves . | . . . . . Propulsion Burnouts . | . . . . . Robots Hopped . | . . . . . Cave-ins Triggered . | . . . . . Exploration Rate (%) 41 | 5 53 62 56 33 Regions Visited 4 Branch Regions . Pre-discovered Areas . | . . . . . Known Exits Taken . | . . . . . Unknown Exits Taken 4 | 1 1 1 1 . Scrap Searched . | . . . . . Spaces Dug 2 | . . 1 1 . Terrain Destroyed 18 | . . 17 1 . Melee 1 | . . . 1 . Projectile 1 | . . 1 . . AOE 16 | . . 16 . . Terrain Rammed . | . . . . . Walls Destroyed . | . . . . . Machines Disabled . | . . . . . Actions | -11 -10 -9 -8 -7 --------- Run | Yrd Mat Mat Mat Fac Total 5769 | 136 455 1028 1741 2409 Wait 1031 | . 64 38 488 441 Move 4112 | 88 362 844 1127 1691 Hop . | . . . . . Pick Up 45 | 11 8 6 9 11 Fast Attach 65 | 9 . 8 8 40 Attach 20 | . . 2 4 14 Detach 8 | 2 . 2 1 3 Swap 23 | . 3 6 7 7 Drop 65 | 5 9 11 14 26 Fire 396 | 21 9 111 82 173 Melee 1 | . . . 1 . Ram 3 | . . . . 3 Kick . | . . . . . Crush . | . . . . . Escape Stasis . | . . . . . Rewire . | . . . . . Trap . | . . . . . Miscellaneous . | . . . . . Route ------- -11/Scrapyard -10/Materials (discovered 2 exits: *Mat / [*Min]) -9/Materials (discovered 2 exits: *Mat x2) -8/Materials (discovered 2 exits: *Fac / Sto) -7/Factory History --------- Turn | Location | Event 6 | -11/Scrapyard | Discovered new exit (range 15) 151 | -11/Scrapyard | Entered Materials 306 | -10/Materials | Build established: Mutant 334 | -10/Materials | Discovered new exit (range 3) 474 | -10/Materials | Discovered new exit (range 15) 569 | -10/Materials | Entered another Materials area 569 | -9/Materials | Evolved 2 slots: Utility x2 1052 | -9/Materials | Discovered new exit (range 16) 1769 | -9/Materials | First assault squad dispatched 1801 | -9/Materials | Discovered new exit (range 6) 1806 | -9/Materials | Entered another Materials area 1806 | -8/Materials | Evolved 2 slots: Propulsion x1, Utility x1 1816 | -8/Materials | Identified exit to Storage 2077 | -8/Materials | Lost 3 parts (1n1u1w) 2226 | -8/Materials | Discovered new exit (range 11) 2564 | -8/Materials | Build established: Scavenger-Mutant 3062 | -8/Materials | Central database locked down 3319 | -8/Materials | Build established: Mutant 3653 | -8/Materials | Entered Factory 3653 | -7/Factory | Evolved 2 slots: Utility x2 4031 | -7/Factory | Build established: Scavenger-Mutant 4190 | -7/Factory | Lost 4 parts (1p1n2u) 4448 | -7/Factory | Lost 4 parts (1n3u) 4542 | -7/Factory | Repaired Arm. Wheel 4837 | -7/Factory | Lost 3 parts (1u2w) 4990 | -7/Factory | Fabricated Hacking Suite? 5554 | -7/Factory | Garrison activated, responded to threat 5666 | -7/Factory | Garrison activated, responded to threat 5733 | -7/Factory | Core integrity fell below 50% 5843 | -7/Factory | Lost 5 parts (1p3u1w) 5923 | -7/Factory | Lost 3 parts (1n2u) 6235 | -7/Factory | Core integrity fell below 20% 6296 | -7/Factory | Lost 3 parts (1p1u1w) 6351 | -7/Factory | Build established: Mutant 6361 | -7/Factory | Destroyed by G-47 Trooper with Particle Gun Last Messages --------------- 06321_ Destroyed Lgt. Nuclear Core. 06321_ Particle Gun melted. 06321_ G-47 Trooper destroyed. 06323_ K-01 Serf collects debris. 06324_ Hrd. Light Armor Plating destroyed. 06326_ Arm. Huge Wheel destroyed. 06327_ Com. Wheel destroyed. 06328_ K-01 Serf collects debris. 06340_ Y-54 Guardian destroyed. 06344_ K-01 Serf cleans the Matter Pump. 06346_ Hrd. Light Armor Plating destroyed. 06347_ K-01 Serf collects debris. 06348_ G-47 Trooper destroyed. 06352_ Acquired Lgt. Treads. 06352_ K-01 Serf collects debris. 06353_ G-47 Trooper suffers critical hit (Burn). 06355_ System corrupted: Heat flow error (+104). 06356_ U-05 Engineer builds a Door. 06357_ K-01 Serf collects debris. 06360_ Acquired Imp. Heat Sink. Map ----- +----------------------------------------------------+ | ??????????????????????????????????????# ?"" """ | | ??????????????????????????????#???????# ?"" """ | | ??????????????????????????????# ####### ! ? | | ??????????????????????????????# ? | | ??????????????????????????????# ## | | ??????????????????????????????# # | | ?????????????????????????????#? | | ?????????????????????????????? | | ????????????????????????????# ^ | | ????????????????????????????+ """ ] = | | ????????????????????????????# """ # % % | | ????????????????????????????#!!! """ # % | | ????????????????????????????#!!! # | | ????????????????????????#####!! ^ """ # =* ! | | ????????????????????????# gg """ #=%=*|!% | | ????????????????????????# """ #[=##/### | | ????????????????????????# u # =*% % | | ????????????????????????# """ """ ### | | ????????????????????????# """ """ #?? | | ????????????????????????# """ """ #?? | | ??????????????###########o #?? | | ??????????????#! !!! # """ """ #?? | | ??????????????# !!! ! #u """ """ ## #?? | | ??????????????#! !! #[ k """[""" ##### #?? | | ??????????????# %+ !%=! #???# #?? | | ??????????????# [#@= =*%=% #???? #?? | | ??????????????# ""T"" #%= #########???? #?? | | ??????????????# """"" !###### #???????????? #?? | | ???????????????? #????# #???????????? #?? | | ????????????????#########????# #???????????? ??? | | ?????????????????????????????# #????????????/??? | | ?????????????????????????????# #???????????? ??? | | ????????????????????????????? ???????????????? | | ????????????????????????????? ??????????????? | | ???????????????????????????? ??????????????? | | ???????????????????????????? +?????????????? | | ???????????????????????????# #?????????????? | | ???????????????????????????# #?????????????? | | ???????????????????????????# #?????????????? | | ????????????????????????????# #??????????????? | | ????????????????????????????? ?????????????? | | ??????????????????????????????????????????????? | | ???????????????????????????????????????????????? | | ????????????????????????????????????????????????## | | ?????????????????????????????????????????????????? | | ?????????????????????????????????????????????????? | | ?????????????????????????????????????????????????? | | ?????????????????????????????????????????????????? | | ?????????????????????????????????????????????????? | | ????????????????????????????????????????########## | +----------------------------------------------------+ Best States ------------- Heat Dissipation 70 Coolant Potential 50 Energy Generation 16 Energy Capacity 290 Matter Stores 300 Matter Capacity 300 Sight Range 18 Robot Scan Range 15 Terrain Scan Density 10 Base Temperature (-) 100 Armor Coverage 675 Core Shielding 20 Evasion (%) 50 Targeting Accuracy 6 Target Analysis 5 Offensive Hacking 10 Defensive Hacking 10 Item Schematics ----------------- Propulsion Shielding | -8/Materials | Hacked Hacking Suite | -8/Materials | Hacked System Shield | -8/Materials | Hacked Hcp. Battery | -8/Materials | Scanalyzed Hvy. Assault Rifle | -8/Materials | Scanalyzed Arm. Wheel | -8/Materials | Scanalyzed Imp. Medium Laser | -8/Materials | Scanalyzed Hcp. Matter Pod | -8/Materials | Scanalyzed Robot Schematics ------------------ None Fabricated ------------ Hacking Suite | x1 | -7/Factory Alien Tech Used ----------------- None Achievements -------------- None Challenges ------------ None Game ------ Seed DimensionalAblativeShredder Manual? 0 Play Time 00:55:17 Cumulative 181.0 hours Start 2024.04.19 @ 14:30:11 End 2024.04.19 @ 18:26:41 Sessions 2 Manual Loads 0 Difficulty Rogue Special Mode None Game No. 171 Rogue 171 Adventurer 0 Explorer 0 Win Type - Total 0 Types 0/0/0/0/0/0/0/0/0 Lore% 55 Gallery% 66 Achievement% 45 Wizard Run 0 Options --------- Layout 2 ASCII 1 Keyboard 1 Movement Numpad Keybinds 0 Fullscreen 2 Font 32/TamsynBold Map View 50x44 Zoom Use 0% Tactical HUD 1 Map Filters NONE Filters NONE Steam 1 RUN: 8bd02c87-6786-463c-9d64-aa6efd275d71